[Event "Early-Titled-Tuesday-Blitz-December-26-2023"]
[Site "Chess.com"]
[Date "2023.12.26"]
[Round "8"]
[White "Alex_Sahakyan2006"]
[Black "jacky72"]
[Result "1/2-1/2"]
[WhiteElo "2718"]
[BlackElo "2812"]
[TimeControl "180+1"]
[EndTime "9:30:54 PST"]
[Termination "Game drawn - insufficient material"]

1. e4 {[%clk 0:03:00.9]} 1... e5 {[%clk 0:02:59.6]} 2. Nf3 {[%clk 0:03:00.4]}
2... Nc6 {[%clk 0:02:59.5]} 3. Bb5 {[%clk 0:02:58.4]} 3... a6 {[%clk 0:02:59.5]}
4. Ba4 {[%clk 0:02:57.2]} 4... Nf6 {[%clk 0:02:59.9]} 5. O-O {[%clk 0:02:55.9]}
5... Be7 {[%clk 0:02:59.9]} 6. Bxc6 {[%clk 0:02:55.5]} 6... dxc6 {[%clk
0:02:59.6]} 7. d3 {[%clk 0:02:56.2]} 7... Nd7 {[%clk 0:02:58.9]} 8. Nbd2 {[%clk
0:02:56.8]} 8... O-O {[%clk 0:02:58.8]} 9. Nc4 {[%clk 0:02:57.4]} 9... f6 {[%clk
0:02:58]} 10. Nh4 {[%clk 0:02:58.1]} 10... Nb6 {[%clk 0:02:56]} 11. Ne3 {[%clk
0:02:55]} 11... g6 {[%clk 0:02:55.7]} 12. a4 {[%clk 0:02:53.8]} 12... f5 {[%clk
0:02:39.3]} 13. Nf3 {[%clk 0:02:50.5]} 13... f4 {[%clk 0:02:39.7]} 14. Nc4
{[%clk 0:02:44.8]} 14... Nxc4 {[%clk 0:02:40.2]} 15. dxc4 {[%clk 0:02:45.7]}
15... Qxd1 {[%clk 0:02:40.5]} 16. Rxd1 {[%clk 0:02:46.1]} 16... Bg4 {[%clk
0:02:41.4]} 17. h3 {[%clk 0:02:46.6]} 17... Bxf3 {[%clk 0:02:41.6]} 18. gxf3
{[%clk 0:02:47.5]} 18... Rad8 {[%clk 0:02:38]} 19. Bd2 {[%clk 0:02:47.6]} 19...
Rd4 {[%clk 0:02:17.2]} 20. Bc3 {[%clk 0:02:47.6]} 20... Rxc4 {[%clk 0:02:17.6]}
21. Rd7 {[%clk 0:02:47.7]} 21... Bd6 {[%clk 0:02:12.9]} 22. Kf1 {[%clk
0:02:43.3]} 22... Rf7 {[%clk 0:02:10.5]} 23. Rd8+ {[%clk 0:02:42]} 23... Rf8
{[%clk 0:02:10.9]} 24. Rd7 {[%clk 0:02:41.9]} 24... b5 {[%clk 0:02:08.5]} 25.
axb5 {[%clk 0:02:29.9]} 25... axb5 {[%clk 0:02:08.5]} 26. Ke2 {[%clk 0:02:30.2]}
26... Rf7 {[%clk 0:02:00.7]} 27. Rd8+ {[%clk 0:02:09.1]} 27... Kg7 {[%clk
0:01:58.4]} 28. Kd3 {[%clk 0:02:02.5]} 28... Ra4 {[%clk 0:01:58.5]} 29. Rxa4
{[%clk 0:02:02.2]} 29... bxa4 {[%clk 0:01:59.4]} 30. Ra8 {[%clk 0:02:02]} 30...
Kf6 {[%clk 0:01:53.4]} 31. Rxa4 {[%clk 0:01:58.4]} 31... Rd7 {[%clk 0:01:49.9]}
32. Ke2 {[%clk 0:01:57.9]} 32... c5 {[%clk 0:01:41]} 33. Ra8 {[%clk 0:01:51.9]}
33... Re7 {[%clk 0:01:37.1]} 34. Kf1 {[%clk 0:01:43.4]} 34... Kg5 {[%clk
0:01:36.1]} 35. Kg2 {[%clk 0:01:42.1]} 35... Kh4 {[%clk 0:01:36.3]} 36. Ba5
{[%clk 0:01:28.8]} 36... h5 {[%clk 0:01:32.6]} 37. Rd8 {[%clk 0:01:24.4]} 37...
Kg5 {[%clk 0:01:32]} 38. h4+ {[%clk 0:01:18.9]} 38... Kf6 {[%clk 0:01:29.4]} 39.
Ra8 {[%clk 0:01:13.8]} 39... Kf7 {[%clk 0:01:23.5]} 40. b3 {[%clk 0:01:11.2]}
40... Rd7 {[%clk 0:01:23.3]} 41. Kf1 {[%clk 0:01:10.9]} 41... Be7 {[%clk
0:01:23.3]} 42. Rc8 {[%clk 0:01:02.3]} 42... Bxh4 {[%clk 0:01:22.6]} 43. Bxc7
{[%clk 0:01:02]} 43... Rd2 {[%clk 0:01:16.6]} 44. Bxe5 {[%clk 0:01:01.6]} 44...
Rxf2+ {[%clk 0:01:16.7]} 45. Kg1 {[%clk 0:01:01.5]} 45... Rxf3 {[%clk
0:00:57.6]} 46. Rxc5 {[%clk 0:00:52.1]} 46... g5 {[%clk 0:00:56.3]} 47. Bd4
{[%clk 0:00:43.5]} 47... Rg3+ {[%clk 0:00:54.2]} 48. Kf1 {[%clk 0:00:39.6]}
48... f3 {[%clk 0:00:52.9]} 49. Bf2 {[%clk 0:00:22.5]} 49... Rg2 {[%clk
0:00:42.9]} 50. Bxh4 {[%clk 0:00:20.6]} 50... gxh4 {[%clk 0:00:43.8]} 51. Rxh5
{[%clk 0:00:10.7]} 51... Rxc2 {[%clk 0:00:43.7]} 52. Rf5+ {[%clk 0:00:09.7]}
52... Ke6 {[%clk 0:00:43.7]} 53. Rxf3 {[%clk 0:00:10.2]} 53... Ke5 {[%clk
0:00:44.2]} 54. Rh3 {[%clk 0:00:10.2]} 54... Kd4 {[%clk 0:00:44.5]} 55. Rxh4
{[%clk 0:00:09.7]} 55... Rb2 {[%clk 0:00:43.6]} 56. Rh3 {[%clk 0:00:07.4]} 56...
Kxe4 {[%clk 0:00:43.5]} 57. Ke1 {[%clk 0:00:07.7]} 57... Kd4 {[%clk 0:00:43.4]}
58. Kd1 {[%clk 0:00:07.9]} 58... Kc5 {[%clk 0:00:44.1]} 59. Kc1 {[%clk
0:00:08.3]} 59... Rg2 {[%clk 0:00:44.8]} 60. Rh4 {[%clk 0:00:07.6]} 60... Kb5
{[%clk 0:00:44.9]} 61. Rc4 {[%clk 0:00:08.1]} 61... Rh2 {[%clk 0:00:44.4]} 62.
Kb1 {[%clk 0:00:08.3]} 62... Rg2 {[%clk 0:00:44.5]} 63. Rf4 {[%clk 0:00:06.6]}
63... Rh2 {[%clk 0:00:44]} 64. Rc4 {[%clk 0:00:07.2]} 64... Rg2 {[%clk
0:00:44.1]} 65. Ra4 {[%clk 0:00:07.7]} 65... Rh2 {[%clk 0:00:44.2]} 66. Ra2
{[%clk 0:00:07.7]} 66... Rh1+ {[%clk 0:00:43.7]} 67. Kb2 {[%clk 0:00:07.7]}
67... Kb4 {[%clk 0:00:41.5]} 68. Ra4+ {[%clk 0:00:07.5]} 68... Kb5 {[%clk
0:00:42.2]} 69. Rc4 {[%clk 0:00:06.6]} 69... Rh2+ {[%clk 0:00:42.4]} 70. Ka3
{[%clk 0:00:07.1]} 70... Rh1 {[%clk 0:00:41.6]} 71. Rg4 {[%clk 0:00:07.2]} 71...
Ra1+ {[%clk 0:00:42.2]} 72. Kb2 {[%clk 0:00:07.7]} 72... Rh1 {[%clk 0:00:43]}
73. Rg8 {[%clk 0:00:07.7]} 73... Kb4 {[%clk 0:00:40.1]} 74. Rb8+ {[%clk
0:00:07.7]} 74... Kc5 {[%clk 0:00:40.7]} 75. Rc8+ {[%clk 0:00:07]} 75... Kb4
{[%clk 0:00:41]} 76. Rb8+ {[%clk 0:00:07.6]} 76... Kc5 {[%clk 0:00:41.3]} 77.
Kc3 {[%clk 0:00:07.1]} 77... Rh3+ {[%clk 0:00:41]} 78. Kc2 {[%clk 0:00:07.6]}
78... Rh1 {[%clk 0:00:41.8]} 79. b4+ {[%clk 0:00:06.4]} 79... Kc4 {[%clk
0:00:42]} 80. b5 {[%clk 0:00:07.1]} 80... Rh2+ {[%clk 0:00:41.9]} 81. Kd1 {[%clk
0:00:06.1]} 81... Rb2 {[%clk 0:00:40.1]} 82. b6 {[%clk 0:00:06.6]} 82... Kb5
{[%clk 0:00:37.8]} 83. Ra8 {[%clk 0:00:05.4]} 83... Kc6 {[%clk 0:00:37.5]} 84.
Rc8+ {[%clk 0:00:05.6]} 84... Kb7 {[%clk 0:00:37.7]} 85. Rc2 {[%clk 0:00:06.1]}
85... Rb1+ {[%clk 0:00:37.5]} 86. Rc1 {[%clk 0:00:06]} 86... Rxb6 {[%clk
0:00:38.4]} 87. Rc2 {[%clk 0:00:06]} 87... Rb3 {[%clk 0:00:38.3]} 88. Rd2 {[%clk
0:00:06.9]} 88... Rh3 {[%clk 0:00:38.8]} 89. Rc2 {[%clk 0:00:07.8]} 89... Kb6
{[%clk 0:00:39.1]} 90. Kc1 {[%clk 0:00:08.7]} 90... Kb5 {[%clk 0:00:39.5]} 91.
Kb2 {[%clk 0:00:09.5]} 91... Kb4 {[%clk 0:00:40]} 92. Rc8 {[%clk 0:00:09.4]}
92... Rh2+ {[%clk 0:00:40.2]} 93. Rc2 {[%clk 0:00:10.3]} 93... Rh4 {[%clk
0:00:40.9]} 94. Rc1 {[%clk 0:00:10.9]} 94... Rf4 {[%clk 0:00:40.8]} 95. Rc2
{[%clk 0:00:11.8]} 95... Ka4 {[%clk 0:00:41.5]} 96. Rc3 {[%clk 0:00:11.2]} 96...
Rb4+ {[%clk 0:00:41.7]} 97. Ka2 {[%clk 0:00:11.3]} 97... Rb5 {[%clk 0:00:41.2]}
98. Ra3+ {[%clk 0:00:11.6]} 98... Kb4 {[%clk 0:00:41.3]} 99. Rb3+ {[%clk
0:00:12.5]} 99... Ka4 {[%clk 0:00:41.9]} 100. Rxb5 {[%clk 0:00:13.4]} 100...
Kxb5 {[%clk 0:00:42.8]} 1/2-1/2

[Event "Early-Titled-Tuesday-Blitz-December-26-2023"]
[Site "Chess.com"]
[Date "2023.12.26"]
[Round "8"]
[White "stollenmonster"]
[Black "PeshkaCh"]
[Result "1/2-1/2"]
[WhiteElo "2924"]
[BlackElo "2845"]
[TimeControl "180+1"]
[EndTime "9:30:55 PST"]
[Termination "Game drawn by repetition"]

1. e4 {[%clk 0:03:00.9]} 1... e5 {[%clk 0:03:00]} 2. Nc3 {[%clk 0:03:00.5]} 2...
Nf6 {[%clk 0:02:59.5]} 3. g3 {[%clk 0:03:00.8]} 3... d5 {[%clk 0:02:59.5]} 4.
exd5 {[%clk 0:03:01.7]} 4... Nxd5 {[%clk 0:03:00.2]} 5. Bg2 {[%clk 0:03:02.1]}
5... Nxc3 {[%clk 0:03:00.7]} 6. bxc3 {[%clk 0:03:03]} 6... Nc6 {[%clk
0:03:01.2]} 7. d3 {[%clk 0:03:03.3]} 7... Bd6 {[%clk 0:03:01.6]} 8. Rb1 {[%clk
0:03:03]} 8... O-O {[%clk 0:03:01.9]} 9. Ne2 {[%clk 0:03:03.7]} 9... Ne7 {[%clk
0:02:48.1]} 10. O-O {[%clk 0:03:03.8]} 10... c6 {[%clk 0:02:48.4]} 11. h3 {[%clk
0:03:03.5]} 11... Qc7 {[%clk 0:02:47.6]} 12. Kh2 {[%clk 0:03:03.7]} 12... Be6
{[%clk 0:02:46.8]} 13. c4 {[%clk 0:03:03.9]} 13... Ng6 {[%clk 0:02:39.6]} 14. f4
{[%clk 0:03:03.5]} 14... exf4 {[%clk 0:02:39.1]} 15. Nxf4 {[%clk 0:03:04.4]}
15... Rad8 {[%clk 0:02:36.1]} 16. Qh5 {[%clk 0:02:55.4]} 16... Nxf4 {[%clk
0:02:07]} 17. Bxf4 {[%clk 0:02:56.3]} 17... Bxf4 {[%clk 0:02:07.4]} 18. Rxf4
{[%clk 0:02:56.1]} 18... b5 {[%clk 0:01:59.9]} 19. Be4 {[%clk 0:01:13.1]} 19...
h6 {[%clk 0:01:51.9]} 20. Rbf1 {[%clk 0:00:49.9]} 20... bxc4 {[%clk 0:01:50.9]}
21. Rf6 {[%clk 0:00:48.8]} 21... cxd3 {[%clk 0:00:50.2]} 22. cxd3 {[%clk
0:00:37.5]} 22... Rd5 {[%clk 0:00:47.5]} 23. Qh4 {[%clk 0:00:12.1]} 23... Rg5
{[%clk 0:00:34]} 24. Rxe6 {[%clk 0:00:04.9]} 24... fxe6 {[%clk 0:00:33.1]} 25.
Bh7+ {[%clk 0:00:04.9]} 25... Kxh7 {[%clk 0:00:31.6]} 26. Rxf8 {[%clk
0:00:05.6]} 26... Qe5 {[%clk 0:00:28.7]} 27. Rf2 {[%clk 0:00:05.7]} 27... Qe3
{[%clk 0:00:24.5]} 28. Qe4+ {[%clk 0:00:05.2]} 28... Qxe4 {[%clk 0:00:24.7]} 29.
dxe4 {[%clk 0:00:06]} 29... Ra5 {[%clk 0:00:22.9]} 30. Rc2 {[%clk 0:00:05.1]}
30... Kg6 {[%clk 0:00:20.3]} 31. Kg2 {[%clk 0:00:03.4]} 31... Kf6 {[%clk
0:00:20.1]} 32. Kf3 {[%clk 0:00:04.1]} 32... Ke5 {[%clk 0:00:18.8]} 33. Rxc6
{[%clk 0:00:04.3]} 33... Ra3+ {[%clk 0:00:19.2]} 34. Kg4 {[%clk 0:00:04.2]}
34... Rxa2 {[%clk 0:00:19.6]} 35. Rc7 {[%clk 0:00:04.8]} 35... g6 {[%clk
0:00:18.5]} 36. Rg7 {[%clk 0:00:03.3]} 36... Kf6 {[%clk 0:00:16.2]} 37. Rh7
{[%clk 0:00:03.2]} 37... h5+ {[%clk 0:00:15.6]} 38. Kh4 {[%clk 0:00:03.6]} 38...
Ra4 {[%clk 0:00:15.4]} 39. g4 {[%clk 0:00:02.5]} 39... Rxe4 {[%clk 0:00:15.8]}
40. Rxa7 {[%clk 0:00:01.2]} 40... hxg4 {[%clk 0:00:10.5]} 41. hxg4 {[%clk
0:00:02.1]} 41... Rb4 {[%clk 0:00:07.7]} 42. Ra8 {[%clk 0:00:02]} 42... Rb3
{[%clk 0:00:06.5]} 43. Rf8+ {[%clk 0:00:02.4]} 43... Kg7 {[%clk 0:00:06.6]} 44.
Ra8 {[%clk 0:00:03.2]} 44... Rb5 {[%clk 0:00:06.3]} 45. Ra7+ {[%clk 0:00:02.6]}
45... Kf6 {[%clk 0:00:06.8]} 46. Ra3 {[%clk 0:00:02.3]} 46... Rc5 {[%clk
0:00:04.6]} 47. Rf3+ {[%clk 0:00:03]} 47... Kg7 {[%clk 0:00:05.1]} 48. Re3
{[%clk 0:00:03.2]} 48... Kf7 {[%clk 0:00:05.8]} 49. Rf3+ {[%clk 0:00:03.6]}
49... Ke7 {[%clk 0:00:06.5]} 50. Re3 {[%clk 0:00:03.5]} 50... Rd5 {[%clk
0:00:07]} 51. Rf3 {[%clk 0:00:03.6]} 51... Rc5 {[%clk 0:00:04.4]} 52. Re3 {[%clk
0:00:03.9]} 52... Kf6 {[%clk 0:00:03.9]} 53. Rf3+ {[%clk 0:00:04.2]} 53... Kg7
{[%clk 0:00:04.6]} 54. Re3 {[%clk 0:00:04.6]} 54... e5 {[%clk 0:00:04.5]} 55.
Kg5 {[%clk 0:00:04.4]} 55... Rb5 {[%clk 0:00:05.1]} 56. Rc3 {[%clk 0:00:04.2]}
56... e4+ {[%clk 0:00:04.2]} 57. Kf4 {[%clk 0:00:04.8]} 57... Kh6 {[%clk
0:00:03.4]} 58. Rh3+ {[%clk 0:00:04.7]} 58... Kg7 {[%clk 0:00:04]} 59. Re3
{[%clk 0:00:04.8]} 59... Kf6 {[%clk 0:00:03.1]} 60. Rxe4 {[%clk 0:00:04.4]}
60... g5+ {[%clk 0:00:02]} 61. Kg3 {[%clk 0:00:05.1]} 61... Rb3+ {[%clk
0:00:02.5]} 62. Kg2 {[%clk 0:00:05.9]} 62... Ra3 {[%clk 0:00:03.1]} 63. Rc4
{[%clk 0:00:05.7]} 63... Rb3 {[%clk 0:00:03.1]} 64. Rc5 {[%clk 0:00:05.4]} 64...
Ra3 {[%clk 0:00:02.5]} 65. Rf5+ {[%clk 0:00:04.3]} 65... Kg6 {[%clk 0:00:02]}
66. Rb5 {[%clk 0:00:05.2]} 66... Rc3 {[%clk 0:00:02.1]} 67. Rb6+ {[%clk
0:00:05.1]} 67... Kf7 {[%clk 0:00:02.4]} 68. Rd6 {[%clk 0:00:06]} 68... Ke7
{[%clk 0:00:02.6]} 69. Rg6 {[%clk 0:00:06]} 69... Rc5 {[%clk 0:00:02]} 70. Kf3
{[%clk 0:00:06.4]} 70... Kf7 {[%clk 0:00:02.7]} 71. Ra6 {[%clk 0:00:06.7]} 71...
Rc4 {[%clk 0:00:03.3]} 72. Rd6 {[%clk 0:00:05.6]} 72... Rb4 {[%clk 0:00:02.6]}
73. Rc6 {[%clk 0:00:05.6]} 73... Rf4+ {[%clk 0:00:02.7]} 74. Kg3 {[%clk
0:00:05.8]} 74... Ra4 {[%clk 0:00:03.3]} 75. Rc7+ {[%clk 0:00:05.9]} 75... Kf6
{[%clk 0:00:03.7]} 76. Rc6+ {[%clk 0:00:06.6]} 76... Kf7 {[%clk 0:00:04.2]} 77.
Rc3 {[%clk 0:00:07]} 77... Ke6 {[%clk 0:00:04]} 78. Rf3 {[%clk 0:00:06.9]} 78...
Re4 {[%clk 0:00:03.5]} 79. Rf5 {[%clk 0:00:07]} 79... Re3+ {[%clk 0:00:03.8]}
80. Kf2 {[%clk 0:00:06.7]} 80... Re5 {[%clk 0:00:04.3]} 81. Rf8 {[%clk
0:00:06.7]} 81... Ra5 {[%clk 0:00:04.1]} 82. Kf3 {[%clk 0:00:06.4]} 82... Ra3+
{[%clk 0:00:04.3]} 83. Kg2 {[%clk 0:00:06.7]} 83... Ra4 {[%clk 0:00:03.8]} 84.
Kg3 {[%clk 0:00:05.8]} 84... Ra3+ {[%clk 0:00:04.2]} 85. Kg2 {[%clk 0:00:06.2]}
85... Ra4 {[%clk 0:00:04.7]} 86. Kg3 {[%clk 0:00:06.7]} 86... Ra3+ {[%clk
0:00:05.4]} 87. Kg2 {[%clk 0:00:07.2]} 1/2-1/2

[Event "Early-Titled-Tuesday-Blitz-December-26-2023"]
[Site "Chess.com"]
[Date "2023.12.26"]
[Round "8"]
[White "Iball95"]
[Black "Alexander_Donchenko"]
[Result "1-0"]
[WhiteElo "2819"]
[BlackElo "2911"]
[TimeControl "180+1"]
[EndTime "9:31:04 PST"]
[Termination "Iball95 won by checkmate"]

1. e4 {[%clk 0:03:00.9]} 1... c6 {[%clk 0:02:59.3]} 2. d4 {[%clk 0:03:00.4]}
2... d5 {[%clk 0:03:00.2]} 3. exd5 {[%clk 0:03:01.3]} 3... cxd5 {[%clk
0:03:01.1]} 4. c4 {[%clk 0:03:02]} 4... Nf6 {[%clk 0:03:01.5]} 5. Nc3 {[%clk
0:03:02.5]} 5... Nc6 {[%clk 0:03:02.2]} 6. Nf3 {[%clk 0:03:01.8]} 6... a6 {[%clk
0:03:02.6]} 7. h3 {[%clk 0:03:01.3]} 7... g6 {[%clk 0:03:02.3]} 8. cxd5 {[%clk
0:02:55.3]} 8... Nxd5 {[%clk 0:03:03.2]} 9. Bc4 {[%clk 0:02:55.6]} 9... Nxc3
{[%clk 0:02:59.6]} 10. bxc3 {[%clk 0:02:56.5]} 10... Bg7 {[%clk 0:02:59.6]} 11.
O-O {[%clk 0:02:55.6]} 11... O-O {[%clk 0:02:59.8]} 12. a4 {[%clk 0:02:55.9]}
12... Bf5 {[%clk 0:02:56.8]} 13. Re1 {[%clk 0:02:55.6]} 13... Rc8 {[%clk
0:02:56.9]} 14. Ba3 {[%clk 0:02:51.9]} 14... Rc7 {[%clk 0:02:49.6]} 15. Ba2
{[%clk 0:02:46.1]} 15... h6 {[%clk 0:02:46.7]} 16. Nh4 {[%clk 0:02:37.1]} 16...
Qc8 {[%clk 0:02:31.5]} 17. g4 {[%clk 0:01:59.5]} 17... Bf6 {[%clk 0:02:26.9]}
18. gxf5 {[%clk 0:01:55.8]} 18... Bxh4 {[%clk 0:02:27.3]} 19. Qg4 {[%clk
0:01:50.5]} 19... g5 {[%clk 0:02:21.9]} 20. f6 {[%clk 0:01:17.2]} 20... exf6
{[%clk 0:02:04.9]} 21. Bxf8 {[%clk 0:01:14.4]} 21... f5 {[%clk 0:02:05.6]} 22.
Qh5 {[%clk 0:01:04.4]} 22... Qxf8 {[%clk 0:02:04.7]} 23. Qg6+ {[%clk 0:01:04.2]}
23... Kh8 {[%clk 0:02:03.5]} 24. Qf6+ {[%clk 0:01:04.2]} 24... Kg8 {[%clk
0:02:00.6]} 25. Qg6+ {[%clk 0:01:01.2]} 25... Kh8 {[%clk 0:02:00.5]} 26. Qf6+
{[%clk 0:01:01.8]} 26... Kg8 {[%clk 0:02:00.8]} 27. Qxf5 {[%clk 0:01:02.5]}
27... Ne7 {[%clk 0:01:59]} 28. Qf6 {[%clk 0:00:59.3]} 28... Qg7 {[%clk
0:01:51.2]} 29. Qd6 {[%clk 0:00:24.9]} 29... g4 {[%clk 0:01:44.1]} 30. Kh1
{[%clk 0:00:21.3]} 30... Rxc3 {[%clk 0:01:04.7]} 31. Rxe7 {[%clk 0:00:17]} 31...
Bxe7 {[%clk 0:01:00.9]} 32. Qxe7 {[%clk 0:00:17.9]} 32... Qg6 {[%clk 0:00:31.9]}
33. Re1 {[%clk 0:00:17.6]} 33... Rxh3+ {[%clk 0:00:15.1]} 34. Kg2 {[%clk
0:00:17.4]} 34... Rf3 {[%clk 0:00:16]} 35. Qe8+ {[%clk 0:00:15.5]} 35... Kg7
{[%clk 0:00:16.2]} 36. Qe5+ {[%clk 0:00:13.6]} 36... Kg8 {[%clk 0:00:14.8]} 37.
Bb1 {[%clk 0:00:14]} 37... Qf6 {[%clk 0:00:04.7]} 38. Qxf6 {[%clk 0:00:09.2]}
38... Rxf6 {[%clk 0:00:05.6]} 39. Re4 {[%clk 0:00:09]} 39... h5 {[%clk
0:00:05.8]} 40. Re5 {[%clk 0:00:09.4]} 40... Rf4 {[%clk 0:00:06.1]} 41. d5
{[%clk 0:00:07.8]} 41... Rxa4 {[%clk 0:00:05.4]} 42. Rxh5 {[%clk 0:00:08.2]}
42... Rb4 {[%clk 0:00:04.6]} 43. Bf5 {[%clk 0:00:06.4]} 43... Rd4 {[%clk
0:00:04.8]} 44. Kg3 {[%clk 0:00:04.8]} 44... Kf8 {[%clk 0:00:05.1]} 45. Bxg4
{[%clk 0:00:05.1]} 45... Ke7 {[%clk 0:00:03.7]} 46. Bf3 {[%clk 0:00:04.4]} 46...
b5 {[%clk 0:00:02.7]} 47. Rh6 {[%clk 0:00:04.9]} 47... a5 {[%clk 0:00:02.7]} 48.
Rb6 {[%clk 0:00:04.9]} 48... b4 {[%clk 0:00:02.7]} 49. Ra6 {[%clk 0:00:03.3]}
49... b3 {[%clk 0:00:03.1]} 50. Rxa5 {[%clk 0:00:03.6]} 50... Rb4 {[%clk
0:00:02.9]} 51. Ra1 {[%clk 0:00:03.6]} 51... b2 {[%clk 0:00:03.1]} 52. Rb1
{[%clk 0:00:04.5]} 52... Kd6 {[%clk 0:00:03.7]} 53. Kg2 {[%clk 0:00:04.9]} 53...
f5 {[%clk 0:00:03.7]} 54. Kf1 {[%clk 0:00:05.4]} 54... Rb3 {[%clk 0:00:03.1]}
55. Ke2 {[%clk 0:00:05.9]} 55... Ke5 {[%clk 0:00:03.8]} 56. Bh1 {[%clk
0:00:05.9]} 56... f4 {[%clk 0:00:03.1]} 57. Kd2 {[%clk 0:00:06.2]} 57... f3
{[%clk 0:00:03.5]} 58. Kc2 {[%clk 0:00:06.9]} 58... Rb5 {[%clk 0:00:03.5]} 59.
Bxf3 {[%clk 0:00:06.1]} 59... Kd4 {[%clk 0:00:02.3]} 60. Rxb2 {[%clk 0:00:06.2]}
60... Rc5+ {[%clk 0:00:03]} 61. Kd2 {[%clk 0:00:06.1]} 61... Ra5 {[%clk
0:00:03.4]} 62. Rb4+ {[%clk 0:00:06.4]} 62... Ke5 {[%clk 0:00:04.1]} 63. Rb3
{[%clk 0:00:06.7]} 63... Ra4 {[%clk 0:00:04.2]} 64. Ke3 {[%clk 0:00:07]} 64...
Ra2 {[%clk 0:00:04.2]} 65. Rd3 {[%clk 0:00:07.5]} 65... Kd6 {[%clk 0:00:04.3]}
66. Be4 {[%clk 0:00:07.8]} 66... Ra1 {[%clk 0:00:04.5]} 67. f3 {[%clk
0:00:08.2]} 67... Re1+ {[%clk 0:00:05.2]} 68. Kf4 {[%clk 0:00:08.6]} 68... Rh1
{[%clk 0:00:05.7]} 69. Rc3 {[%clk 0:00:08.9]} 69... Rh4+ {[%clk 0:00:06.2]} 70.
Ke3 {[%clk 0:00:09.4]} 70... Rh5 {[%clk 0:00:06]} 71. Rc6+ {[%clk 0:00:09.4]}
71... Ke7 {[%clk 0:00:06.8]} 72. Kd4 {[%clk 0:00:09.4]} 72... Rh1 {[%clk
0:00:06.7]} 73. f4 {[%clk 0:00:09.7]} 73... Rh4 {[%clk 0:00:06]} 74. Ke5 {[%clk
0:00:09.6]} 74... Rh5+ {[%clk 0:00:06.1]} 75. f5 {[%clk 0:00:10.2]} 75... Rh2
{[%clk 0:00:03.5]} 76. Rc7+ {[%clk 0:00:10.4]} 76... Kf8 {[%clk 0:00:04.2]} 77.
Ra7 {[%clk 0:00:10.7]} 77... Re2 {[%clk 0:00:03.8]} 78. d6 {[%clk 0:00:11.1]}
78... Rd2 {[%clk 0:00:03.9]} 79. Ke6 {[%clk 0:00:11.2]} 79... Rd4 {[%clk
0:00:03.4]} 80. Ra8+ {[%clk 0:00:10.4]} 80... Kg7 {[%clk 0:00:04.2]} 81. f6+
{[%clk 0:00:10.8]} 81... Kh6 {[%clk 0:00:04.9]} 82. Ke5 {[%clk 0:00:11.3]} 82...
Rd1 {[%clk 0:00:04.6]} 83. f7 {[%clk 0:00:11.4]} 83... Rf1 {[%clk 0:00:05.2]}
84. f8=Q+ {[%clk 0:00:11.6]} 84... Rxf8 {[%clk 0:00:06]} 85. Rxf8 {[%clk
0:00:11.9]} 85... Kg7 {[%clk 0:00:06.9]} 86. Rf6 {[%clk 0:00:11.6]} 86... Kh8
{[%clk 0:00:07.8]} 87. Ke6 {[%clk 0:00:11.8]} 87... Kg7 {[%clk 0:00:08.7]} 88.
Bd5 {[%clk 0:00:12]} 88... Kg8 {[%clk 0:00:09.3]} 89. Ba8 {[%clk 0:00:11]} 89...
Kh7 {[%clk 0:00:09.9]} 90. Kf7 {[%clk 0:00:11]} 90... Kh8 {[%clk 0:00:10.2]} 91.
Rh6# {[%clk 0:00:11.9]} 1-0